bitfinex/quotes_SOLUSD_20220212
["timestamp","ask_amount","ask_price","bid_price","bid_amount"]
[1644648627851,12.67,94.1,93.975,1.50253849]
[1644648628049,12.67,94.1,93.987,1.50253849]
[1644648628353,5.317,94.099,94.002,1.50253849]
[1644648628550,5.317,94.106,94.015,1.50253849]
[1644648628751,5.317,94.098,94.019,1.50253849]
[1644648628949,5.316,94.105,94.019,1.50253849]
[1644648629150,5.315,94.106,94.019,1.50253849]
[1644648629551,5.315,94.106,94.021,1.50253849]
[1644648629751,23.7959,94.107,94.03,15.9497]
[1644648629955,23.7959,94.107,94.031,1.50253849]
[1644648630153,5.315,94.106,94.03,15.9497]
[1644648630557,5.315,94.106,94.03,17.45223849]
[1644648630852,5.315,94.106,94.032,1.50253849]
[1644648631054,23.7959,94.107,94.033,1.50253849]
[1644648631254,5.315,94.105,94.033,1.50253849]
[1644648631455,23.7959,94.107,94.032,1.50253849]
[1644648631656,23.7959,94.107,94.031,1.50253849]
[1644648631855,23.7959,94.107,94.034,1.50253849]
[1644648632055,23.7959,94.107,94.03,15.9497]
[1644648632056,5.315,94.106,94.03,17.45223849]
[1644648632476,5.315,94.106,94.032,1.50253849]
[1644648632677,23.7959,94.107,94.032,1.50253849]
[1644648632973,5.315,94.106,94.033,1.50253849]
[1644648633374,5.315,94.106,94.036,1.50253849]
[1644648634379,5.315,94.106,94.037,1.50253849]
[1644648634576,23.7959,94.107,94.037,1.50253849]
[1644648635378,35.83619694,94.109,94.04,15.9474]
[1644648635579,5.315,94.147,94.044,1.50253849]
[1644648635779,5.315,94.147,94.053,1.50253849]
[1644648635978,5.313,94.148,94.06,12.67]
[1644648636176,5.313,94.148,94.061,1.50253849]
[1644648636376,188.1,94.19,94.06,12.67]
[1644648636377,5.313,94.179,94.074,1.50253849]
[1644648636579,41.63513547,94.157,94.09,15.9375]
[1644648637377,5.312,94.156,94.061,1.50253849]
[1644648637582,41.63513547,94.157,94.061,1.50253849]
[1644648637776,41.63513547,94.157,94.06,14.17253849]
[1644648637976,5.313,94.156,94.06,14.17253849]
[1644648638177,5.313,94.156,94.06,12.67]
[1644648638877,5.313,94.156,94.07,15.9422]
[1644648639279,2.38366791,94.155,94.054,1.50253849]
[1644648639578,5.313,94.154,94.05,12.67]
[1644648639877,15.9477,94.15,94.05,28.6159]
[1644648640179,2.38366791,94.149,94.05,15.9459]
[1644648640379,7.69666791,94.149,94.05,15.9459]
[1644648640577,5.313,94.149,94.05,15.9459]
[1644648643783,5.313,94.156,94.05,28.6159]
[1644648643985,5.313,94.148,94.05,28.6159]
[1644648644184,5.313,94.155,94.056,1.50253849]
[1644648644383,5.313,94.156,94.08,15.9413]
[1644648644584,5.313,94.154,94.08,15.9413]
[1644648644785,5.312,94.155,94.08,15.9413]
[1644648644986,5.312,94.153,94.08,15.9413]
[1644648645286,5.312,94.156,94.08,15.9413]
[1644648645484,5.312,94.152,94.08,15.9413]
[1644648645684,5.312,94.155,94.08,15.9413]
[1644648645886,5.312,94.151,94.06,15.9439]
[1644648646085,7.69666791,94.154,94.06,15.9439]
[1644648646285,5.313,94.15,94.06,15.9439]
[1644648646487,5.313,94.153,94.06,15.9439]
[1644648646687,5.313,94.156,94.06,15.9439]
[1644648647288,5.313,94.156,94.064,1.50253849]
[1644648647488,41.63513547,94.157,94.08,15.9409]
[1644648648388,41.63513547,94.157,94.08,28.6109]
[1644648649590,5.312,94.188,94.11,15.9349]
[1644648649792,113.0,94.195,94.11,15.9349]
[1644648649990,113.0,94.195,94.11,28.6049]
[1644648650691,43.7646344,94.194,94.11,28.6049]
[1644648650890,38.4556344,94.194,94.11,28.6049]
[1644648651291,5.309,94.193,94.11,28.6049]
[1644648651690,38.4556344,94.194,94.11,28.6049]
[1644648657096,38.4556344,94.194,94.111,10.25519215]
[1644648657296,38.4556344,94.194,94.13,15.9291]
[1644648657497,38.4556344,94.194,94.13,28.5991]
[1644648662199,38.4556344,94.194,94.131,2.38366791]
[1644648662413,38.4556344,94.194,94.14,15.9274]
[1644648662602,38.4556344,94.194,94.14,28.5974]
[1644648662801,0.03335173,94.22,94.141,2.38366791]
[1644648662998,158.65,94.238,94.141,2.38366791]
[1644648662999,0.03335173,94.23,94.141,2.38366791]
[1644648663201,5.308,94.237,94.148,1.50253849]
[1644648663399,5.308,94.269,94.15,12.67]
[1644648663599,0.03335173,94.25,94.16,15.9247]
[1644648663800,36.89918968,94.258,94.16,15.9247]
[1644648663999,36.89918968,94.258,94.16,12.67]
[1644648664200,36.89918968,94.258,94.161,2.38366791]
[1644648664401,5.307,94.257,94.161,2.38366791]
[1644648664603,36.89918968,94.258,94.162,10.25519215]
[1644648665001,36.89918968,94.258,94.163,2.38366791]
[1644648665401,36.89918968,94.258,94.164,10.25519215]
[1644648665806,36.89918968,94.258,94.19,15.9224]
[1644648667002,5.306,94.257,94.19,15.9224]
[1644648669308,36.89918968,94.258,94.19,15.9224]
[1644648669511,47.0,94.256,94.16,53.0814]
[1644648669712,5.307,94.255,94.129,1.50253849]
[1644648669913,113.0,94.243,94.125,1.50253849]
[1644648670110,43.81815719,94.242,94.125,1.50253849]
[1644648670309,0.03335173,94.23,94.15,15.9293]
[1644648670509,5.308,94.229,94.15,15.9293]
[1644648670709,5.34135173,94.24,94.15,15.9293]
[1644648670912,5.308,94.241,94.15,15.9293]
[1644648671110,94.6701251,94.242,94.15,15.9293]
[1644648671111,5.308,94.239,94.15,15.9293]
[1644648671312,94.6701251,94.242,94.15,15.9293]
[1644648671313,0.03335173,94.24,94.15,15.9293]
[1644648671512,5.308,94.238,94.15,15.9293]
[1644648671710,0.03335173,94.24,94.15,15.9293]
[1644648671910,5.308,94.239,94.15,15.9293]
[1644648672110,5.34135173,94.24,94.15,15.9293]
[1644648672316,5.308,94.238,94.15,15.9293]
[1644648672510,0.03335173,94.24,94.15,15.9293]
[1644648672711,5.308,94.239,94.15,15.9293]
[1644648672910,5.34135173,94.24,94.15,15.9293]
[1644648673112,92.28645719,94.242,94.15,15.9293]
[1644648673113,5.308,94.241,94.15,15.9293]
[1644648679112,92.28645719,94.242,94.151,1.50253849]
[1644648679313,92.28645719,94.242,94.16,1.50253849]
[1644648679513,43.81815719,94.242,94.17,15.9245]
[1644648679721,113.0,94.243,94.17,28.5945]
[1644648679917,113.0,94.243,94.173,1.50253849]
[1644648680112,113.0,94.243,94.17,28.5945]
[1644648680113,113.0,94.243,94.18,1.50253849]
[1644648680314,113.0,94.243,94.19,12.67]
[1644648680715,113.0,94.243,94.19,28.5882]
[1644648680916,113.0,94.292,94.191,2.38366791]
[1644648681139,113.0,94.292,94.194,1.50253849]
[1644648681315,113.0,94.292,94.195,1.50253849]
[1644648681517,113.0,94.292,94.199,1.50253849]
[1644648681716,41.95704653,94.291,94.21,12.67]
[1644648682917,41.95704653,94.291,94.22,15.9145]
[1644648683118,5.304,94.29,94.22,15.9145]
[1644648684618,41.95704653,94.291,94.22,15.9145]
[1644648684817,5.304,94.29,94.22,15.9145]
[1644648685017,7.68766791,94.29,94.22,15.9145]
[1644648685416,2.38366791,94.289,94.22,15.9145]
[1644648685620,41.95704653,94.291,94.22,15.9145]
[1644648686422,2.38366791,94.29,94.22,15.9145]
[1644648686821,41.95704653,94.291,94.22,15.9145]
[1644648687021,5.304,94.29,94.22,15.9145]
[1644648691452,41.95704653,94.291,94.22,15.9145]
[1644648691646,41.95704653,94.291,94.221,2.38366791]
[1644648691849,41.95704653,94.291,94.23,15.9156]
[1644648692246,41.95704653,94.291,94.231,2.38366791]
[1644648693247,5.304,94.29,94.231,2.38366791]
[1644648693448,41.95704653,94.291,94.231,2.38366791]
[1644648693848,41.95704653,94.291,94.24,15.9139]
[1644648694051,5.304,94.29,94.24,15.9139]
[1644648694251,5.304,94.29,94.241,2.38366791]
[1644648695349,41.95704653,94.291,94.241,2.38366791]
[1644648696958,5.304,94.31,94.25,15.9127]
[1644648697359,5.304,94.31,94.251,2.38366791]
[1644648697558,0.03335173,94.33,94.251,2.38366791]
[1644648697764,5.303,94.329,94.251,2.38366791]
[1644648697965,38.6407375,94.328,94.251,2.38366791]
[1644648698463,5.301,94.327,94.251,2.38366791]
[1644648698662,7.68466791,94.327,94.25,15.9127]
[1644648698862,2.38366791,94.326,94.25,15.9127]
[1644648699066,5.301,94.325,94.25,15.9127]
[1644648699263,5.301,94.326,94.25,15.9127]
[1644648699465,5.301,94.327,94.25,15.9127]
[1644648700766,5.301,94.327,94.25,10.9127]
[1644648700968,5.301,94.327,94.251,2.38366791]
[1644648701368,5.301,94.327,94.26,15.9109]
[1644648701771,5.301,94.327,94.261,2.38366791]
[1644648701970,38.6407375,94.328,94.261,2.38366791]
[1644648702770,38.6407375,94.328,94.27,15.9085]
[1644648702971,5.301,94.327,94.27,15.9085]
[1644648703171,5.301,94.327,94.25,12.67]
[1644648703172,38.6407375,94.328,94.271,2.38366791]
[1644648703971,38.6407375,94.328,94.26,53.0255]
[1644648704872,38.6407375,94.328,94.28,15.9077]
[1644648705674,5.301,94.337,94.28,15.9077]
[1644648705878,5.301,94.35,94.28,15.9077]
[1644648706074,24.2539,94.379,94.28,15.9077]
[1644648706075,5.301,94.369,94.28,15.9077]
[1644648706274,0.03335173,94.36,94.28,15.9077]
[1644648706675,34.52128341,94.342,94.28,15.9077]
[1644648707482,0.03335173,94.37,94.281,2.38366791]
[1644648707675,5.301,94.369,94.3,15.902]
[1644648708074,24.9135,94.377,94.3,15.902]
[1644648708075,5.3,94.376,94.3,15.902]
[1644648708477,113.0,94.389,94.3,15.902]
[1644648708478,113.0,94.389,94.31,12.67]
[1644648708684,113.0,94.389,94.33,15.895]
[1644648709278,113.0,94.389,94.331,2.38366791]
[1644648709679,0.03335173,94.42,94.331,2.38366791]
[1644648709878,0.03335173,94.43,94.34,15.8943]
[1644648710079,0.03335173,94.43,94.35,12.67]
[1644648710282,113.0,94.441,94.36,3.94]
[1644648710479,7.0,94.48,94.37,12.67]
[1644648710480,0.03335173,94.44,94.37,12.67]
[1644648710686,0.03335173,94.45,94.38,3.94]
[1644648710879,0.03335173,94.45,94.4,15.8843]
[1644648711080,5.296,94.479,94.4,15.8843]
[1644648711486,37.15322436,94.478,94.4,15.8843]
[1644648711686,39.53689227,94.478,94.4,15.8843]
[1644648711885,5.293,94.477,94.4,15.8843]
[1644648712086,7.67666791,94.477,94.4,15.8843]
[1644648712284,5.293,94.477,94.4,15.8843]
[1644648712685,2.38366791,94.476,94.38,28.5602]
[1644648712885,5.295,94.475,94.38,15.8902]
[1644648713285,1.88366791,94.474,94.38,15.8902]
[1644648713484,1.88366791,94.474,94.3,158.35]
[1644648713485,7.0,94.47,94.318,1.50253849]
[1644648713685,0.03335173,94.46,94.327,1.50253849]
[1644648713886,47.87047436,94.435,94.34,12.67]
[1644648714692,2.38366791,94.434,94.35,15.8945]
[1644648714901,7.68066791,94.434,94.35,15.8945]
[1644648715803,5.297,94.434,94.35,15.8945]
[1644648716406,5.297,94.434,94.35,23.5645]
[1644648717607,47.87047436,94.435,94.35,23.5645]
[1644648718106,47.87047436,94.435,94.335,17.4626729]
[1644648718107,7.68066791,94.434,94.33,15.8979]
[1644648718307,113.0,94.425,94.33,15.8979]
[1644648718507,5.297,94.424,94.33,15.8979]
[1644648719508,5.297,94.424,94.31,15.9014]
[1644648719509,12.67,94.41,94.31,15.9014]
[1644648719713,37.05023737,94.408,94.287,1.50253849]
[1644648719911,40.47963265,94.379,94.273,1.50253849]
[1644648720110,40.47963265,94.379,94.231,3.94]
[1644648720111,46.09,94.378,94.269,1.50253849]
[1644648720408,51.391,94.378,94.264,1.50253849]
[1644648720810,51.391,94.378,94.28,15.9057]
[1644648723612,51.391,94.378,94.25,65.6972]
[1644648723613,15.9113,94.37,94.27,1.50253849]
[1644648723813,7.0,94.35,94.243,1.50253849]
[1644648724013,7.0,94.33,94.234,1.50253849]
[1644648724217,47.5374,94.329,94.234,1.50253849]
[1644648724617,5.303,94.328,94.234,1.50253849]
[1644648725017,5.303,94.328,94.232,1.50253849]
[1644648725216,5.303,94.328,94.228,2.38366791]
[1644648725217,5.303,94.328,94.238,1.50253849]
[1644648725416,5.303,94.328,94.241,1.50253849]
[1644648725617,5.303,94.328,94.238,1.50253849]
[1644648725817,5.303,94.328,94.24,15.913]
[1644648726017,5.303,94.328,94.24,17.41553849]
[1644648726217,5.303,94.328,94.239,2.38366791]
[1644648726418,7.0,94.32,94.234,1.50253849]
[1644648726618,37.82752634,94.318,94.229,1.50253849]
[1644648726818,0.03335173,94.31,94.229,1.50253849]
[1644648727016,37.82752634,94.318,94.229,1.50253849]
[1644648727216,5.303,94.317,94.228,1.50253849]
[1644648727420,29.2918,94.317,94.227,1.50253849]
[1644648727619,29.2918,94.317,94.222,1.50253849]
[1644648727818,29.2918,94.317,94.223,1.50253849]
[1644648728221,23.9888,94.317,94.227,1.50253849]
[1644648728422,23.9888,94.317,94.229,1.50253849]
[1644648728622,23.9888,94.317,94.231,1.50253849]
[1644648728922,23.9888,94.317,94.235,1.50253849]
[1644648729122,23.9888,94.317,94.246,1.50253849]
[1644648729422,23.9888,94.317,94.248,1.50253849]
[1644648729721,23.9888,94.317,94.247,2.38366791]
[1644648729922,5.303,94.316,94.242,1.50253849]
[1644648730121,5.303,94.316,94.241,1.50253849]
[1644648730322,5.303,94.316,94.243,3.8862064]
[1644648730522,23.9888,94.317,94.244,1.50253849]
[1644648730721,23.9888,94.317,94.25,15.9116]
[1644648730922,5.303,94.316,94.25,15.9116]
[1644648732120,23.9888,94.317,94.25,15.9116]
[1644648732321,5.303,94.316,94.25,15.9116]
[1644648734019,23.9888,94.317,94.25,15.9116]
[1644648734621,5.303,94.316,94.25,15.9116]
[1644648734823,23.9888,94.317,94.25,15.9116]
[1644648735025,23.9888,94.317,94.221,10.47539666]
[1644648735026,23.9888,94.317,94.27,15.9078]
[1644648735224,23.3811,94.329,94.27,15.9078]
[1644648735425,113.0,94.34,94.271,2.38366791]
[1644648735831,34.89845646,94.339,94.27,15.9078]
[1644648736224,34.89845646,94.339,94.271,2.38366791]
[1644648736423,5.301,94.338,94.27,15.9078]
[1644648736625,34.89845646,94.339,94.27,15.9078]
[1644648737224,5.301,94.338,94.271,2.38366791]
[1644648737431,34.89845646,94.339,94.28,15.9074]
[1644648739227,5.301,94.338,94.28,15.9074]
[1644648739827,5.301,94.338,94.256,1.50253849]
[1644648740029,2.38366791,94.337,94.26,15.911]
[1644648740232,0.03335173,94.33,94.26,15.911]
[1644648740427,5.301,94.329,94.26,15.911]
[1644648740643,5.301,94.335,94.26,15.911]
[1644648740828,45.3264,94.338,94.261,1.50253849]
[1644648741027,45.3264,94.338,94.28,15.9071]
[1644648741928,0.03335173,94.37,94.28,15.9071]
[1644648742127,0.03335173,94.36,94.3,15.9017]
[1644648742327,55.1837,94.384,94.3,15.9017]
[1644648742532,49.8837,94.384,94.301,2.38366791]
[1644648742734,5.3,94.389,94.301,15.00438084]
[1644648742929,0.03335173,94.39,94.312,1.50253849]
[1644648743130,43.84924783,94.418,94.32,28.5698]
[1644648743330,43.84924783,94.418,94.33,12.67]
[1644648743929,7.68166791,94.417,94.33,12.67]
[1644648744129,43.84924783,94.418,94.35,15.8933]
[1644648745138,43.84924783,94.418,94.351,2.38366791]
[1644648745340,43.84924783,94.418,94.37,15.891]
[1644648746138,0.03335173,94.43,94.371,2.38366791]
[1644648746344,113.0,94.438,94.38,15.8873]
[1644648746943,5.296,94.459,94.38,15.8873]
[1644648747139,47.36018349,94.458,94.381,2.38366791]
[1644648747339,47.36018349,94.458,94.4,15.8824]
[1644648747638,0.03335173,94.47,94.4,28.5524]
[1644648747838,5.293,94.479,94.401,2.38366791]
[1644648748041,5.293,94.491,94.401,2.38366791]
[1644648748238,0.03335173,94.49,94.401,2.38366791]
[1644648748440,5.293,94.489,94.401,2.38366791]
[1644648748656,113.0,94.493,94.401,2.38366791]
[1644648748657,43.09741637,94.488,94.401,2.38366791]
[1644648748844,45.48108428,94.488,94.42,15.8813]
[1644648749045,7.67666791,94.487,94.42,15.8813]
[1644648749451,2.38366791,94.486,94.42,15.8813]
[1644648749646,5.293,94.485,94.42,15.8813]
[1644648749849,5.293,94.486,94.42,15.8813]
[1644648750051,5.293,94.487,94.4,15.8874]
[1644648750348,7.67666791,94.485,94.4,15.8874]
[1644648750550,5.293,94.485,94.4,15.8874]
[1644648750949,5.293,94.485,94.38,65.6233]
[1644648750950,7.67666791,94.485,94.38,65.6233]
[1644648751149,22.9897,94.484,94.38,12.67]
[1644648751350,28.2827,94.484,94.38,12.67]
[1644648751652,2.38366791,94.483,94.37,15.8903]
[1644648751850,5.295,94.482,94.37,15.8903]
[1644648752250,113.0,94.458,94.37,15.8903]
[1644648752551,36.20417138,94.457,94.37,15.8903]
[1644648752750,5.295,94.456,94.37,15.8903]
[1644648755956,5.295,94.456,94.371,2.38366791]
[1644648756168,36.20417138,94.457,94.39,15.8893]
[1644648756368,5.295,94.456,94.39,15.8893]
[1644648757669,36.20417138,94.457,94.39,15.8893]
[1644648757670,36.20417138,94.457,94.391,2.38366791]
[1644648757871,36.20417138,94.457,94.41,15.884]
[1644648760273,5.293,94.456,94.41,15.884]
[1644648760474,36.20417138,94.457,94.41,15.884]
[1644648760977,36.20417138,94.457,94.411,2.38366791]
[1644648761277,36.20417138,94.457,94.42,15.8831]
[1644648762474,5.293,94.479,94.42,15.8831]
[1644648762675,5.293,94.486,94.42,15.8831]
[1644648762875,22.774,94.487,94.421,2.38366791]
[1644648763075,22.774,94.487,94.43,15.8816]
[1644648763275,5.293,94.486,94.43,15.8816]
[1644648763475,38.06737672,94.485,94.43,15.8816]
[1644648763678,5.293,94.484,94.43,15.8816]
[1644648764075,5.293,94.484,94.431,2.38366791]
[1644648764276,38.06737672,94.485,94.431,2.38366791]
[1644648764478,113.0,94.494,94.44,15.8794]
[1644648764876,113.0,94.494,94.441,2.38366791]
[1644648765479,37.47927719,94.493,94.441,2.38366791]
[1644648765876,37.47927719,94.493,94.45,15.8761]
[1644648766079,5.293,94.492,94.45,15.8761]
[1644648766280,37.47927719,94.493,94.45,15.8761]
[1644648767277,113.0,94.494,94.45,15.8761]
[1644648767479,0.03335173,94.51,94.451,2.38366791]
[1644648767679,113.0,94.533,94.46,15.8734]
[1644648767880,0.03335173,94.53,94.46,15.8734]
[1644648768082,113.0,94.533,94.46,15.8734]
[1644648768283,43.24138458,94.532,94.46,15.8734]
[1644648769285,42.24138458,94.532,94.46,15.8734]
[1644648769687,5.291,94.531,94.46,15.8734]
[1644648770988,5.291,94.531,94.48,15.8724]
[1644648771188,5.291,94.559,94.48,15.8724]
[1644648771390,7.03335173,94.57,94.481,2.38366791]
[1644648771587,5.289,94.558,94.481,2.38366791]
[1644648771787,5.289,94.573,94.481,19.84634081]
[1644648771987,42.23099554,94.572,94.481,19.84634081]
[1644648772187,42.23099554,94.572,94.482,2.38366791]
[1644648772387,5.289,94.575,94.5,15.8692]
[1644648772587,5.289,94.606,94.51,12.67]
[1644648772786,5.289,94.606,94.483,11.12057894]
[1644648772787,0.03335173,94.58,94.52,12.67]
[1644648772990,0.03335173,94.6,94.52,12.67]
[1644648773187,0.03335173,94.64,94.521,28.58325184]
[1644648773387,0.03335173,94.61,94.521,30.96691975]
[1644648773586,43.44614793,94.647,94.53,15.8573]
[1644648773587,0.03335173,94.63,94.53,15.8573]
[1644648773788,5.285,94.638,94.54,12.67]
[1644648773989,0.03335173,94.63,94.54,12.67]
[1644648774188,5.285,94.637,94.54,12.67]
[1644648774486,0.03335173,94.64,94.54,12.67]
[1644648774686,5.285,94.639,94.54,12.67]
[1644648775488,5.285,94.639,94.56,15.8599]
[1644648775690,46.8719,94.646,94.56,28.5299]
[1644648775889,5.285,94.639,94.56,28.5299]
[1644648776092,5.285,94.645,94.56,28.5299]
[1644648776290,43.44614793,94.647,94.561,2.38366791]
[1644648776494,188.13335173,94.65,94.561,19.84634081]
[1644648776691,0.03335173,94.67,94.58,15.8528]
[1644648776890,0.03335173,94.67,94.59,12.67]
[1644648777093,5.284,94.669,94.59,12.67]
[1644648777291,0.03335173,94.67,94.59,12.67]
[1644648777492,35.25328129,94.651,94.59,12.67]
[1644648778490,34.75328129,94.651,94.59,12.67]
[1644648778891,34.75328129,94.651,94.6,15.8486]
[1644648779095,5.283,94.65,94.57,12.67]
[1644648779294,7.66666791,94.65,94.54,12.67]
[1644648779595,50.03926791,94.649,94.53,12.67]
[1644648779794,0.03335173,94.64,94.53,12.67]
[1644648779994,5.285,94.639,94.53,12.67]
[1644648780194,0.03335173,94.63,94.56,15.8604]
[1644648780394,5.285,94.647,94.56,15.8604]
[1644648780595,5.285,94.648,94.56,15.8604]
[1644648780995,5.285,94.648,94.57,12.67]
[1644648781197,43.0281431,94.649,94.59,15.8543]
[1644648781394,4.284,94.648,94.59,15.8543]
[1644648781996,4.284,94.648,94.57,12.67]
[1644648782197,4.284,94.648,94.55,12.67]
[1644648782421,0.03335173,94.64,94.55,12.67]
[1644648782719,5.285,94.639,94.56,15.8585]
[1644648782919,2.38366791,94.639,94.56,15.8585]
[1644648783120,5.285,94.638,94.56,15.8585]
[1644648783521,5.285,94.638,94.5,2.61]
[1644648783522,2.38366791,94.637,94.51,12.67]
[1644648783722,36.51734702,94.61,94.54,15.8637]
[1644648784226,36.51734702,94.61,94.541,2.38366791]
[1644648784522,36.51734702,94.61,94.54,15.8637]
[1644648784721,5.285,94.609,94.54,15.8637]
[1644648784920,36.01734702,94.61,94.54,15.8637]
[1644648785922,5.285,94.609,94.54,15.8637]
[1644648786524,5.285,94.609,94.541,2.38366791]
[1644648786727,36.01734702,94.61,94.56,15.86]
[1644648787323,36.01734702,94.61,94.56,18.24366791]
[1644648787528,36.01734702,94.61,94.56,15.86]
[1644648788926,36.01734702,94.61,94.561,2.38366791]
[1644648789126,36.01734702,94.61,94.57,15.8566]
[1644648789527,36.01734702,94.61,94.571,2.38366791]
[1644648789727,0.03335173,94.64,94.571,2.38366791]
[1644648789931,5.285,94.652,94.571,2.38366791]
[1644648790136,5.284,94.654,94.571,2.38366791]
[1644648790535,5.284,94.654,94.57,28.5266]
[1644648790735,45.19072755,94.647,94.57,28.5266]
[1644648791940,45.19072755,94.647,94.57,15.8566]
[1644648792139,7.66766791,94.646,94.55,28.532]
[1644648792339,7.66766791,94.646,94.55,15.862]
[1644648792537,2.38366791,94.645,94.55,15.862]
[1644648792738,5.285,94.644,94.55,15.862]
[1644648793138,2.38366791,94.643,94.55,15.862]
[1644648793538,5.285,94.642,94.55,15.862]
[1644648793939,45.19072755,94.647,94.55,28.532]
[1644648794142,5.285,94.646,94.55,45.77800623]
[1644648794342,7.66866791,94.646,94.55,45.77800623]
[1644648794542,7.66866791,94.646,94.55,28.532]
[1644648794740,5.285,94.646,94.55,28.532]
[1644648795239,2.38366791,94.645,94.55,28.532]
[1644648795443,5.285,94.644,94.55,28.532]
[1644648795840,2.38366791,94.643,94.55,28.532]
[1644648796041,45.19072755,94.647,94.55,28.532]
[1644648796042,5.285,94.646,94.55,28.532]
[1644648796242,5.285,94.643,94.55,28.532]
[1644648796443,5.285,94.646,94.55,28.532]
[1644648796843,5.285,94.646,94.551,2.38366791]
[1644648797046,45.19072755,94.647,94.57,15.8583]
[1644648797343,5.285,94.646,94.57,15.8583]
[1644648798644,45.19072755,94.647,94.57,15.8583]
[1644648798844,45.19072755,94.647,94.572,1.4734421]
[1644648799045,45.19072755,94.647,94.59,15.854]
[1644648800747,5.284,94.646,94.59,15.854]
[1644648800949,45.19072755,94.647,94.59,15.854]
[1644648801948,5.284,94.646,94.59,15.854]
[1644648802852,45.19072755,94.647,94.59,15.854]
[1644648805155,45.19072755,94.647,94.591,1.4734421]
[1644648805354,45.19072755,94.647,94.6,15.8522]
[1644648805857,113.0,94.655,94.601,2.38366791]
[1644648806255,113.0,94.655,94.602,1.4734421]
[1644648806556,113.0,94.655,94.607,1.4734421]
[1644648806956,113.0,94.701,94.61,28.5189]
[1644648807157,113.0,94.701,94.622,1.4734421]
[1644648807158,0.03335173,94.68,94.622,1.4734421]
[1644648807356,5.282,94.7,94.624,1.4734421]
[1644648807559,5.282,94.7,94.63,12.67]
[1644648807757,38.0831711,94.699,94.635,1.4734421]
[1644648808056,38.0831711,94.699,94.638,1.4734421]
[1644648808859,38.0831711,94.699,94.65,15.8437]
[1644648809461,5.282,94.7,94.65,15.8437]
[1644648809660,5.281,94.719,94.65,15.8437]
[1644648809859,5.28,94.729,94.65,15.8437]
[1644648810063,5.28,94.718,94.65,15.8437]
[1644648810260,5.28,94.728,94.65,15.8437]
[1644648810460,38.83894045,94.716,94.65,15.8437]
[1644648810863,5.28,94.715,94.65,15.8437]
[1644648812466,5.28,94.715,94.65,18.22736791]
[1644648812669,38.83894045,94.716,94.65,15.8437]
[1644648813166,38.83894045,94.716,94.65,18.22736791]
[1644648813566,38.83894045,94.716,94.65,30.89736791]
[1644648813766,5.28,94.715,94.65,28.5137]
[1644648814167,38.83894045,94.716,94.65,28.5137]
[1644648814366,5.28,94.715,94.65,28.5137]
[1644648817187,5.28,94.715,94.651,2.38366791]
[1644648817387,38.83894045,94.716,94.651,2.38366791]
[1644648817589,38.83894045,94.716,94.67,15.8391]
[1644648817988,38.83894045,94.716,94.67,28.5091]
[1644648818587,38.83894045,94.716,94.67,15.8391]
[1644648818989,5.28,94.715,94.67,15.8391]
[1644648820292,38.83894045,94.716,94.67,15.8391]
[1644648820491,5.28,94.715,94.67,15.8391]
[1644648822991,38.83894045,94.716,94.67,15.8391]
[1644648823992,38.83894045,94.716,94.64,65.482]
[1644648824192,5.281,94.715,94.65,15.8454]
[1644648825396,38.83894045,94.716,94.65,15.8454]
[1644648827893,0.03335173,94.73,94.66,12.67]
[1644648828097,113.0,94.737,94.66,12.67]
[1644648828294,113.0,94.737,94.68,15.8377]
[1644648829703,113.0,94.737,94.681,2.38366791]
[1644648829904,113.0,94.737,94.69,15.8318]
[1644648830096,0.03335173,94.76,94.69,15.8318]